[Event "*** Titled Tuesday Blitz"]
[Site "Chess.com"]
[Date "2021.03.02"]
[Round "6"]
[White "Enriquack"]
[Black "dosto07"]
[Result "1-0"]
[WhiteElo "2456"]
[BlackElo "2326"]
[TimeControl "180+1"]
[EndTime "11:07:49 PST"]
[Termination "Enriquack won on time"]

1. e4 {[%clk 0:03:00.9]} 1... e5 {[%clk 0:02:58.9]} 2. f4 {[%clk 0:02:59.1]}
2... d5 {[%clk 0:02:56.8]} 3. exd5 {[%clk 0:02:58.7]} 3... exf4 {[%clk
0:02:54.9]} 4. Nf3 {[%clk 0:02:57.1]} 4... Nf6 {[%clk 0:02:53.1]} 5. Bb5+ {[%clk
0:02:56.6]} 5... c6 {[%clk 0:02:51.7]} 6. dxc6 {[%clk 0:02:57.5]} 6... bxc6
{[%clk 0:02:51.4]} 7. Bc4 {[%clk 0:02:55.5]} 7... Bd6 {[%clk 0:02:50.9]} 8. Qe2+
{[%clk 0:02:53.7]} 8... Be7 {[%clk 0:02:49.7]} 9. d4 {[%clk 0:02:51.9]} 9... Qd6
{[%clk 0:02:24.8]} 10. O-O {[%clk 0:02:38.5]} 10... O-O {[%clk 0:02:24.2]} 11.
Re1 {[%clk 0:02:24.4]} 11... Bd8 {[%clk 0:02:08.6]} 12. c3 {[%clk 0:02:18.4]}
12... Bg4 {[%clk 0:02:04.5]} 13. Nbd2 {[%clk 0:02:14.5]} 13... Nbd7 {[%clk
0:02:01.9]} 14. Ne4 {[%clk 0:02:12.6]} 14... Nxe4 {[%clk 0:01:52.8]} 15. Qxe4
{[%clk 0:02:13.5]} 15... Bxf3 {[%clk 0:01:40.2]} 16. Qxf3 {[%clk 0:02:07.3]}
16... Bg5 {[%clk 0:01:38]} 17. g3 {[%clk 0:01:34.8]} 17... c5 {[%clk 0:01:24.2]}
18. Bxf4 {[%clk 0:01:21.9]} 18... Bxf4 {[%clk 0:01:23.8]} 19. Qxf4 {[%clk
0:01:22.1]} 19... Qxf4 {[%clk 0:01:20.7]} 20. gxf4 {[%clk 0:01:23]} 20... cxd4
{[%clk 0:01:19.7]} 21. cxd4 {[%clk 0:01:01.8]} 21... Nb6 {[%clk 0:01:19]} 22.
Bb3 {[%clk 0:01:01.4]} 22... Rad8 {[%clk 0:01:18.6]} 23. Rad1 {[%clk 0:00:59.5]}
23... Rd7 {[%clk 0:01:16.3]} 24. Re5 {[%clk 0:00:43.2]} 24... Rfd8 {[%clk
0:01:12.1]} 25. Ra5 {[%clk 0:00:39.7]} 25... g6 {[%clk 0:01:07]} 26. Kf2 {[%clk
0:00:38.2]} 26... Kg7 {[%clk 0:01:06]} 27. d5 {[%clk 0:00:35.3]} 27... Kf6
{[%clk 0:00:57.8]} 28. Rc5 {[%clk 0:00:34.4]} 28... h5 {[%clk 0:00:46.2]} 29.
Kf3 {[%clk 0:00:33.5]} 29... Rd6 {[%clk 0:00:42.9]} 30. a4 {[%clk 0:00:31.2]}
30... Nd7 {[%clk 0:00:40.8]} 31. Rc6 {[%clk 0:00:30.4]} 31... Nb8 {[%clk
0:00:34.3]} 32. Rc7 {[%clk 0:00:26.1]} 32... a5 {[%clk 0:00:30.1]} 33. Rdc1
{[%clk 0:00:23.9]} 33... Na6 {[%clk 0:00:28]} 34. R7c6 {[%clk 0:00:23]} 34...
Nb4 {[%clk 0:00:27.8]} 35. Rxd6+ {[%clk 0:00:21.8]} 35... Rxd6 {[%clk
0:00:28.3]} 36. Rc5 {[%clk 0:00:21.9]} 36... Ra6 {[%clk 0:00:23.7]} 37. Rb5
{[%clk 0:00:20]} 37... g5 {[%clk 0:00:15.7]} 38. fxg5+ {[%clk 0:00:19.2]} 38...
Kxg5 {[%clk 0:00:16.6]} 39. Bc4 {[%clk 0:00:18.1]} 39... Rf6+ {[%clk 0:00:13.3]}
40. Ke3 {[%clk 0:00:16.6]} 40... Rd6 {[%clk 0:00:08.4]} 41. Rxa5 {[%clk
0:00:14.2]} 41... Kf6 {[%clk 0:00:07.9]} 42. Kd4 {[%clk 0:00:13.9]} 42... Nc6+
{[%clk 0:00:05]} 43. Kc5 {[%clk 0:00:12.6]} 43... Nxa5 {[%clk 0:00:05.9]} 44.
Ba2 {[%clk 0:00:12.5]} 44... Rd8 {[%clk 0:00:04.4]} 45. b4 {[%clk 0:00:12.7]}
45... Nb7+ {[%clk 0:00:03.9]} 46. Kb6 {[%clk 0:00:13.2]} 46... Nd6 {[%clk
0:00:04.7]} 47. a5 {[%clk 0:00:13.1]} 47... Ke5 {[%clk 0:00:05.2]} 48. Kc7
{[%clk 0:00:12.6]} 48... Ra8 {[%clk 0:00:04]} 49. Bb3 {[%clk 0:00:10.9]} 49...
Rc8+ {[%clk 0:00:02.5]} 50. Kd7 {[%clk 0:00:10.6]} 50... Rb8 {[%clk 0:00:02.3]}
51. a6 {[%clk 0:00:09.8]} 51... Rxb4 {[%clk 0:00:01.9]} 52. a7 {[%clk
0:00:10.2]} 52... Rxb3 {[%clk 0:00:01.1]} 53. a8=Q {[%clk 0:00:10.6]} 1-0

[Event "*** Titled Tuesday Blitz"]
[Site "Chess.com"]
[Date "2021.03.02"]
[Round "6"]
[White "Msb2"]
[Black "Aleksey_Sorokin"]
[Result "1-0"]
[WhiteElo "2898"]
[BlackElo "2785"]
[TimeControl "180+1"]
[EndTime "11:07:52 PST"]
[Termination "Msb2 won by resignation"]

1. d4 {[%clk 0:03:00.9]} 1... Nf6 {[%clk 0:02:59.1]} 2. Nf3 {[%clk 0:03:00.2]}
2... g6 {[%clk 0:02:59.1]} 3. Nc3 {[%clk 0:03:00.5]} 3... d5 {[%clk 0:02:57.2]}
4. Bf4 {[%clk 0:03:00.4]} 4... a6 {[%clk 0:02:55.7]} 5. h3 {[%clk 0:02:57.4]}
5... Nc6 {[%clk 0:02:53.4]} 6. e3 {[%clk 0:02:55.8]} 6... Bg7 {[%clk 0:02:52.8]}
7. Be2 {[%clk 0:02:55.5]} 7... O-O {[%clk 0:02:47]} 8. Ne5 {[%clk 0:02:54.6]}
8... Nxe5 {[%clk 0:02:31.1]} 9. Bxe5 {[%clk 0:02:29.7]} 9... Ne4 {[%clk
0:02:32]} 10. Nxe4 {[%clk 0:02:20.4]} 10... Bxe5 {[%clk 0:02:26.5]} 11. dxe5
{[%clk 0:02:18.5]} 11... dxe4 {[%clk 0:02:26.1]} 12. Bc4 {[%clk 0:02:06]} 12...
Be6 {[%clk 0:02:24.3]} 13. Bxe6 {[%clk 0:02:01.6]} 13... fxe6 {[%clk 0:02:24.2]}
14. Qg4 {[%clk 0:01:41]} 14... Qd5 {[%clk 0:02:20.3]} 15. Rd1 {[%clk 0:01:41.6]}
15... Qxe5 {[%clk 0:02:18.3]} 16. Rd4 {[%clk 0:01:40.3]} 16... Rf6 {[%clk
0:01:41.8]} 17. Qxe4 {[%clk 0:01:34.3]} 17... Qxe4 {[%clk 0:01:40.4]} 18. Rxe4
{[%clk 0:01:35.2]} 18... Rd8 {[%clk 0:01:40.5]} 19. Ke2 {[%clk 0:01:33.7]} 19...
Kf7 {[%clk 0:01:39.4]} 20. g4 {[%clk 0:01:27.7]} 20... Rd6 {[%clk 0:01:35.5]}
21. f4 {[%clk 0:01:25]} 21... Ke8 {[%clk 0:01:35.6]} 22. Rd1 {[%clk 0:01:22.5]}
22... Kd7 {[%clk 0:01:35.7]} 23. c4 {[%clk 0:01:21.8]} 23... c5 {[%clk
0:01:28.7]} 24. Re5 {[%clk 0:01:11.8]} 24... b6 {[%clk 0:01:27.8]} 25. a3 {[%clk
0:01:07.3]} 25... Rf8 {[%clk 0:01:27]} 26. h4 {[%clk 0:00:55.6]} 26... Rd8
{[%clk 0:01:15.2]} 27. h5 {[%clk 0:00:52.2]} 27... Rxd1 {[%clk 0:01:14]} 28.
Kxd1 {[%clk 0:00:52.5]} 28... Ke8+ {[%clk 0:01:14.9]} 29. Ke2 {[%clk 0:00:51.2]}
29... Kf7 {[%clk 0:01:14.8]} 30. h6 {[%clk 0:00:43.3]} 30... Kf6 {[%clk
0:01:05.6]} 31. g5+ {[%clk 0:00:43.5]} 31... Kf7 {[%clk 0:01:05.4]} 32. b4
{[%clk 0:00:44.2]} 32... Rc8 {[%clk 0:00:57.6]} 33. Kd3 {[%clk 0:00:43.5]} 33...
Rc6 {[%clk 0:00:55.2]} 34. Kc3 {[%clk 0:00:41.8]} 34... Ke8 {[%clk 0:00:54.2]}
35. e4 {[%clk 0:00:36.5]} 35... Kd7 {[%clk 0:00:43.8]} 36. f5 {[%clk 0:00:34.4]}
36... exf5 {[%clk 0:00:36.1]} 37. exf5 {[%clk 0:00:35.3]} 37... cxb4+ {[%clk
0:00:28.6]} 38. axb4 {[%clk 0:00:34.5]} 38... gxf5 {[%clk 0:00:24.4]} 39. Rxf5
{[%clk 0:00:35.4]} 39... b5 {[%clk 0:00:20.2]} 40. c5 {[%clk 0:00:34.1]} 40...
Rg6 {[%clk 0:00:17.6]} 41. Kd4 {[%clk 0:00:34.1]} 41... Ke6 {[%clk 0:00:12]} 42.
Ke4 {[%clk 0:00:34.4]} 42... Rg8 {[%clk 0:00:10.9]} 43. Re5+ {[%clk 0:00:28.3]}
43... Kf7 {[%clk 0:00:11.1]} 44. Kf5 {[%clk 0:00:25.5]} 44... Rd8 {[%clk
0:00:10.5]} 45. c6 {[%clk 0:00:25.6]} 45... Rb8 {[%clk 0:00:01.1]} 46. Rc5
{[%clk 0:00:25.5]} 46... Rc8 {[%clk 0:00:01]} 47. c7 {[%clk 0:00:25]} 47... e6+
{[%clk 0:00:01.8]} 48. Ke5 {[%clk 0:00:25.5]} 48... Ke7 {[%clk 0:00:02.7]} 49.
Rc6 {[%clk 0:00:20.7]} 49... Kd7 {[%clk 0:00:03.2]} 50. Rxa6 {[%clk 0:00:20.1]}
50... Rxc7 {[%clk 0:00:03.4]} 51. Rd6+ {[%clk 0:00:20.7]} 51... Ke7 {[%clk
0:00:03.1]} 52. Rxe6+ {[%clk 0:00:20.9]} 52... Kf7 {[%clk 0:00:04]} 53. Rf6+
{[%clk 0:00:21.4]} 53... Ke7 {[%clk 0:00:04.4]} 54. Rb6 {[%clk 0:00:21.8]} 54...
Rc1 {[%clk 0:00:04.3]} 55. Rb7+ {[%clk 0:00:21.9]} 55... Kf8 {[%clk 0:00:04.3]}
56. Rxh7 {[%clk 0:00:22.8]} 56... Re1+ {[%clk 0:00:04.7]} 57. Kf6 {[%clk
0:00:23.1]} 57... Rf1+ {[%clk 0:00:05.2]} 58. Kg6 {[%clk 0:00:23.6]} 58... Rb1
{[%clk 0:00:05.5]} 59. Rb7 {[%clk 0:00:22.7]} 59... Rxb4 {[%clk 0:00:05.8]} 60.
h7 {[%clk 0:00:23.3]} 60... Rh4 {[%clk 0:00:06.7]} 61. Rb8+ {[%clk 0:00:23.7]}
61... Ke7 {[%clk 0:00:07]} 62. h8=Q {[%clk 0:00:24.6]} 1-0

[Event "*** Titled Tuesday Blitz"]
[Site "Chess.com"]
[Date "2021.03.02"]
[Round "6"]
[White "Das_Virus_2020"]
[Black "ApoIogiA"]
[Result "1-0"]
[WhiteElo "2450"]
[BlackElo "2201"]
[TimeControl "180+1"]
[EndTime "11:07:52 PST"]
[Termination "Das_Virus_2020 won by resignation"]

1. e4 {[%clk 0:03:00.9]} 1... c5 {[%clk 0:02:56.6]} 2. c3 {[%clk 0:03:00.7]}
2... Nf6 {[%clk 0:02:56.1]} 3. e5 {[%clk 0:03:00.3]} 3... Nd5 {[%clk 0:02:56.7]}
4. d4 {[%clk 0:03:01.1]} 4... cxd4 {[%clk 0:02:55.3]} 5. cxd4 {[%clk 0:03:02]}
5... Nc6 {[%clk 0:02:54.4]} 6. Nf3 {[%clk 0:03:02.4]} 6... d6 {[%clk 0:02:54.6]}
7. Bc4 {[%clk 0:03:02.2]} 7... Nb6 {[%clk 0:02:53.8]} 8. Bb3 {[%clk 0:03:02.1]}
8... dxe5 {[%clk 0:02:51.4]} 9. d5 {[%clk 0:03:02]} 9... Nd4 {[%clk 0:02:47.2]}
10. Nxd4 {[%clk 0:02:53.1]} 10... exd4 {[%clk 0:02:46.2]} 11. Qxd4 {[%clk
0:02:54]} 11... e6 {[%clk 0:02:42.1]} 12. Nc3 {[%clk 0:02:49]} 12... exd5 {[%clk
0:02:38.4]} 13. O-O {[%clk 0:02:46.8]} 13... Be6 {[%clk 0:02:34.6]} 14. Re1
{[%clk 0:02:42.3]} 14... Be7 {[%clk 0:02:30.8]} 15. Qxg7 {[%clk 0:02:35.9]}
15... Bf6 {[%clk 0:02:29.9]} 16. Qg3 {[%clk 0:02:34.4]} 16... Qd7 {[%clk
0:01:44.5]} 17. Bf4 {[%clk 0:02:22.9]} 17... Bxc3 {[%clk 0:01:40.9]} 18. Qxc3
{[%clk 0:02:12.9]} 18... Rg8 {[%clk 0:01:36.6]} 19. Bg3 {[%clk 0:02:10.5]} 19...
Rc8 {[%clk 0:01:34.9]} 20. Qf6 {[%clk 0:01:56.1]} 20... Qe7 {[%clk 0:01:28.7]}
21. Qh6 {[%clk 0:01:48.8]} 21... Qg5 {[%clk 0:01:05.3]} 22. Qxh7 {[%clk
0:01:35.4]} 22... Nc4 {[%clk 0:00:56.8]} 23. Ba4+ {[%clk 0:01:23.5]} 23... Kf8
{[%clk 0:00:42.8]} 24. b3 {[%clk 0:01:23]} 24... Rg7 {[%clk 0:00:20.6]} 25. Qh8+
{[%clk 0:00:58.1]} 25... Rg8 {[%clk 0:00:20.5]} 26. Qh7 {[%clk 0:00:42.3]} 26...
Rg7 {[%clk 0:00:20.1]} 27. Qb1 {[%clk 0:00:37.7]} 27... Nd2 {[%clk 0:00:16.4]}
28. Qd3 {[%clk 0:00:36.8]} 28... Ne4 {[%clk 0:00:13]} 29. Rad1 {[%clk
0:00:32.8]} 29... Rc3 {[%clk 0:00:11.7]} 30. Qd4 {[%clk 0:00:29.8]} 30... Kg8
{[%clk 0:00:09.8]} 31. Bb5 {[%clk 0:00:26.5]} 31... Rc5 {[%clk 0:00:06.3]} 32.
Bf1 {[%clk 0:00:26.1]} 32... Rc8 {[%clk 0:00:05.4]} 33. Be5 {[%clk 0:00:21.5]}
33... Rh7 {[%clk 0:00:04.7]} 34. f3 {[%clk 0:00:18.2]} 34... Nc5 {[%clk
0:00:01.8]} 35. Bg3 {[%clk 0:00:17.5]} 35... Nd7 {[%clk 0:00:02.2]} 36. Qf2
{[%clk 0:00:14.3]} 36... Nf6 {[%clk 0:00:02.1]} 37. Bd3 {[%clk 0:00:13.1]} 37...
Nh5 {[%clk 0:00:02.4]} 38. Bxh7+ {[%clk 0:00:11.6]} 38... Kxh7 {[%clk
0:00:03.3]} 39. Re5 {[%clk 0:00:10]} 39... Qg6 {[%clk 0:00:02.3]} 40. Re2 {[%clk
0:00:08.1]} 40... Rg8 {[%clk 0:00:02.7]} 41. Rde1 {[%clk 0:00:06.4]} 41... Nf6
{[%clk 0:00:02.7]} 42. Qd4 {[%clk 0:00:04.8]} 42... Nh5 {[%clk 0:00:02.9]} 43.
Qh4 {[%clk 0:00:04.3]} 43... Kg7 {[%clk 0:00:02.6]} 44. Re5 {[%clk 0:00:03.8]}
44... Kf8 {[%clk 0:00:02.9]} 45. Rxh5 {[%clk 0:00:03.4]} 45... Qd3 {[%clk
0:00:02.7]} 46. Rhe5 {[%clk 0:00:03.1]} 46... Qd4+ {[%clk 0:00:02.8]} 47. Qxd4
{[%clk 0:00:02]} 1-0

[Event "*** Titled Tuesday Blitz"]
[Site "Chess.com"]
[Date "2021.03.02"]
[Round "6"]
[White "shaheus"]
[Black "j_coca"]
[Result "0-1"]
[WhiteElo "2427"]
[BlackElo "2329"]
[TimeControl "180+1"]
[EndTime "11:07:53 PST"]
[Termination "j_coca won on time"]

1. e4 {[%clk 0:03:00.9]} 1... Nf6 {[%clk 0:02:54.6]} 2. e5 {[%clk 0:02:58.9]}
2... Nd5 {[%clk 0:02:17.1]} 3. Nc3 {[%clk 0:02:58.2]} 3... Nxc3 {[%clk
0:02:16.3]} 4. bxc3 {[%clk 0:02:58.3]} 4... d5 {[%clk 0:02:16.9]} 5. g3 {[%clk
0:02:57.3]} 5... d4 {[%clk 0:02:10.2]} 6. Bb2 {[%clk 0:02:44]} 6... dxc3 {[%clk
0:02:00.3]} 7. Bxc3 {[%clk 0:02:43]} 7... Be6 {[%clk 0:01:55]} 8. Bg2 {[%clk
0:02:41.7]} 8... Bd5 {[%clk 0:01:54.7]} 9. Nf3 {[%clk 0:02:36.1]} 9... Nc6
{[%clk 0:01:52.3]} 10. O-O {[%clk 0:02:36]} 10... e6 {[%clk 0:01:51.6]} 11. d3
{[%clk 0:02:21.5]} 11... Ba3 {[%clk 0:01:44.6]} 12. Qe2 {[%clk 0:02:11.6]} 12...
b6 {[%clk 0:01:41.9]} 13. Bd2 {[%clk 0:01:58.6]} 13... Ne7 {[%clk 0:01:40]} 14.
c4 {[%clk 0:01:48.6]} 14... Bb7 {[%clk 0:01:38.5]} 15. Bc3 {[%clk 0:01:47.2]}
15... a5 {[%clk 0:01:33.4]} 16. Rab1 {[%clk 0:01:45.2]} 16... O-O {[%clk
0:01:30.9]} 17. Rfd1 {[%clk 0:01:40]} 17... Ng6 {[%clk 0:01:20.3]} 18. d4 {[%clk
0:01:38.1]} 18... Qe7 {[%clk 0:01:13.3]} 19. h4 {[%clk 0:01:35]} 19... Rfd8
{[%clk 0:01:12.3]} 20. Rb3 {[%clk 0:01:08.9]} 20... a4 {[%clk 0:01:00.8]} 21.
Rbb1 {[%clk 0:01:04.6]} 21... Rd7 {[%clk 0:01:00.5]} 22. Qe3 {[%clk 0:00:54.4]}
22... Rad8 {[%clk 0:00:55.3]} 23. Rd3 {[%clk 0:00:42.5]} 23... Qf8 {[%clk
0:00:49.1]} 24. h5 {[%clk 0:00:37.1]} 24... Nh8 {[%clk 0:00:48.1]} 25. Ng5
{[%clk 0:00:31.6]} 25... Bxg2 {[%clk 0:00:45.9]} 26. Kxg2 {[%clk 0:00:30.8]}
26... Be7 {[%clk 0:00:42.7]} 27. Ne4 {[%clk 0:00:27.7]} 27... f5 {[%clk
0:00:37.5]} 28. exf6 {[%clk 0:00:23]} 28... Bxf6 {[%clk 0:00:37]} 29. Rbd1
{[%clk 0:00:22]} 29... Nf7 {[%clk 0:00:34.4]} 30. Nxf6+ {[%clk 0:00:19.5]} 30...
gxf6 {[%clk 0:00:34.2]} 31. d5 {[%clk 0:00:19.7]} 31... e5 {[%clk 0:00:33.4]}
32. Qf3 {[%clk 0:00:17.3]} 32... Qh6 {[%clk 0:00:28.6]} 33. Bd2 {[%clk
0:00:16.2]} 33... Qg7 {[%clk 0:00:25.8]} 34. Be3 {[%clk 0:00:15.7]} 34... Nd6
{[%clk 0:00:24.2]} 35. Rc3 {[%clk 0:00:12.6]} 35... f5 {[%clk 0:00:22.8]} 36. c5
{[%clk 0:00:10.8]} 36... bxc5 {[%clk 0:00:19.6]} 37. Bxc5 {[%clk 0:00:09.2]}
37... Ne4 {[%clk 0:00:17.3]} 38. Rc4 {[%clk 0:00:08.2]} 38... Rf7 {[%clk
0:00:03.7]} 39. Rxa4 {[%clk 0:00:05.6]} 39... Nxc5 {[%clk 0:00:03.8]} 40. Rc4
{[%clk 0:00:05.2]} 40... Ne4 {[%clk 0:00:04.2]} 41. Rc6 {[%clk 0:00:05.2]} 41...
Ng5 {[%clk 0:00:04.6]} 42. Qb3 {[%clk 0:00:04]} 42... f4 {[%clk 0:00:05.2]} 43.
d6 {[%clk 0:00:04]} 43... cxd6 {[%clk 0:00:05.2]} 44. Rcxd6 {[%clk 0:00:04]}
44... Rf8 {[%clk 0:00:06]} 45. Rd7 {[%clk 0:00:03]} 45... Kh8 {[%clk 0:00:06.5]}
46. h6 {[%clk 0:00:03]} 46... Qg6 {[%clk 0:00:05.8]} 47. Rxf7 {[%clk 0:00:02.6]}
47... Qxf7 {[%clk 0:00:06.7]} 48. Qxf7 {[%clk 0:00:01.7]} 48... Nxf7 {[%clk
0:00:07.6]} 49. Rd5 {[%clk 0:00:01.3]} 49... Re8 {[%clk 0:00:07.4]} 0-1

[Event "*** Titled Tuesday Blitz"]
[Site "Chess.com"]
[Date "2021.03.02"]
[Round "6"]
[White "JulianProleiko"]
[Black "ViktoriyaTarasova"]
[Result "1-0"]
[WhiteElo "2421"]
[BlackElo "2284"]
[TimeControl "180+1"]
[EndTime "11:07:54 PST"]
[Termination "JulianProleiko won by checkmate"]

1. e4 {[%clk 0:03:00.9]} 1... e5 {[%clk 0:02:59.4]} 2. Nf3 {[%clk 0:03:01.1]}
2... Nc6 {[%clk 0:02:58.2]} 3. Bb5 {[%clk 0:03:01]} 3... Nf6 {[%clk 0:02:58.7]}
4. O-O {[%clk 0:03:00.1]} 4... Nxe4 {[%clk 0:02:58.7]} 5. Re1 {[%clk 0:03:00.2]}
5... Nd6 {[%clk 0:02:57.9]} 6. Nxe5 {[%clk 0:03:00.5]} 6... Nxe5 {[%clk
0:02:57]} 7. Rxe5+ {[%clk 0:03:01.4]} 7... Be7 {[%clk 0:02:57.5]} 8. Bf1 {[%clk
0:03:01.2]} 8... O-O {[%clk 0:02:57]} 9. Nc3 {[%clk 0:03:01.2]} 9... Ne8 {[%clk
0:02:55]} 10. Nd5 {[%clk 0:02:53.8]} 10... Bd6 {[%clk 0:02:55.1]} 11. Re1 {[%clk
0:02:53.6]} 11... c6 {[%clk 0:02:55.3]} 12. Ne3 {[%clk 0:02:53.4]} 12... Bc7
{[%clk 0:02:52.2]} 13. Nf5 {[%clk 0:02:52.6]} 13... d5 {[%clk 0:02:47.9]} 14.
Ne7+ {[%clk 0:02:52.7]} 14... Kh8 {[%clk 0:02:48]} 15. Nxc8 {[%clk 0:02:53.6]}
15... Rxc8 {[%clk 0:02:47.5]} 16. d3 {[%clk 0:02:51]} 16... Nf6 {[%clk 0:02:34]}
17. g3 {[%clk 0:02:49.2]} 17... Qd7 {[%clk 0:02:29.9]} 18. Qf3 {[%clk
0:02:42.9]} 18... Rce8 {[%clk 0:02:27]} 19. Bg5 {[%clk 0:02:42.5]} 19... Rxe1
{[%clk 0:02:21]} 20. Rxe1 {[%clk 0:02:41.2]} 20... Re8 {[%clk 0:02:21.2]} 21.
Re3 {[%clk 0:02:24.7]} 21... Rxe3 {[%clk 0:01:57.4]} 22. fxe3 {[%clk 0:02:02.8]}
22... Qe6 {[%clk 0:01:48]} 23. Kg2 {[%clk 0:01:34.2]} 23... h6 {[%clk
0:01:46.7]} 24. Bxf6 {[%clk 0:01:22.6]} 24... Qxf6 {[%clk 0:01:45.4]} 25. Qxf6
{[%clk 0:01:22.5]} 25... gxf6 {[%clk 0:01:45.3]} 26. d4 {[%clk 0:01:23.4]} 26...
b6 {[%clk 0:01:35.5]} 27. Ba6 {[%clk 0:01:13.7]} 27... c5 {[%clk 0:01:32.4]} 28.
Bb7 {[%clk 0:01:12.7]} 28... cxd4 {[%clk 0:01:30]} 29. exd4 {[%clk 0:01:12.9]}
29... Kg7 {[%clk 0:01:29.1]} 30. Bxd5 {[%clk 0:01:12.7]} 30... Kf8 {[%clk
0:01:29.8]} 31. Kf3 {[%clk 0:01:11.8]} 31... Ke7 {[%clk 0:01:30.4]} 32. Ke4
{[%clk 0:01:10.9]} 32... Bd6 {[%clk 0:01:29.5]} 33. Kf5 {[%clk 0:01:09.9]} 33...
Bb4 {[%clk 0:01:27.9]} 34. c3 {[%clk 0:01:09.1]} 34... Bd6 {[%clk 0:01:28.6]}
35. Kg4 {[%clk 0:01:06.9]} 35... Kf8 {[%clk 0:01:15]} 36. Bb3 {[%clk 0:00:52.1]}
36... Kg7 {[%clk 0:01:09.6]} 37. Kf5 {[%clk 0:00:51.2]} 37... h5 {[%clk
0:00:57.5]} 38. Ke4 {[%clk 0:00:38.2]} 38... h4 {[%clk 0:00:53.3]} 39. gxh4
{[%clk 0:00:38.4]} 39... Bxh2 {[%clk 0:00:52.5]} 40. Kd5 {[%clk 0:00:35.6]}
40... Bg3 {[%clk 0:00:45.6]} 41. h5 {[%clk 0:00:35.4]} 41... Kh6 {[%clk
0:00:35]} 42. Bd1 {[%clk 0:00:35.1]} 42... f5 {[%clk 0:00:29.9]} 43. Kc6 {[%clk
0:00:34.7]} 43... Kg7 {[%clk 0:00:20.3]} 44. d5 {[%clk 0:00:33.6]} 44... Kf8
{[%clk 0:00:20.9]} 45. d6 {[%clk 0:00:25.4]} 45... Ke8 {[%clk 0:00:20.7]} 46. h6
{[%clk 0:00:23.3]} 46... Kd8 {[%clk 0:00:20]} 47. h7 {[%clk 0:00:20.6]} 47...
Be5 {[%clk 0:00:20.5]} 48. Bf3 {[%clk 0:00:20.1]} 48... f4 {[%clk 0:00:20.4]}
49. Kd5 {[%clk 0:00:19.9]} 49... Bh8 {[%clk 0:00:16.3]} 50. Bg4 {[%clk 0:00:20]}
50... f5 {[%clk 0:00:14.8]} 51. Bxf5 {[%clk 0:00:17.5]} 51... f3 {[%clk
0:00:14.8]} 52. Bh3 {[%clk 0:00:17.9]} 52... f2 {[%clk 0:00:14.9]} 53. Kc6
{[%clk 0:00:14.8]} 53... Be5 {[%clk 0:00:13]} 54. a4 {[%clk 0:00:12.9]} 54...
Bh8 {[%clk 0:00:11.5]} 55. Kb7 {[%clk 0:00:12.9]} 55... f1=Q {[%clk 0:00:09.9]}
56. Bxf1 {[%clk 0:00:13.4]} 56... Kd7 {[%clk 0:00:10.5]} 57. Kxa7 {[%clk
0:00:13.8]} 57... Kxd6 {[%clk 0:00:11.4]} 58. Kxb6 {[%clk 0:00:14.4]} 58... Kd7
{[%clk 0:00:11.2]} 59. a5 {[%clk 0:00:14.5]} 59... Kc8 {[%clk 0:00:12.1]} 60. a6
{[%clk 0:00:15.4]} 60... Kb8 {[%clk 0:00:12.7]} 61. a7+ {[%clk 0:00:15.4]} 61...
Ka8 {[%clk 0:00:13.6]} 62. Bg2# {[%clk 0:00:15.9]} 1-0